bitfinex-derivatives/quotes_BTCF0:USTF0_20210102
["timestamp","ask_amount","ask_price","bid_price","bid_amount"]
[1609552180156,4.40787529,29387.0,29382.0,0.00036569]
[1609552180358,0.00041434,29386.0,29384.0,0.00036574]
[1609552180557,0.00041434,29386.0,29383.0,0.00036574]
[1609552180756,0.00041434,29386.0,29385.0,0.00036574]
[1609552181058,0.00041434,29386.0,29378.0,0.00036574]
[1609552181458,0.00041434,29386.0,29385.0,0.00036574]
[1609552181658,0.00041434,29386.0,29379.0,0.00036574]
[1609552181959,5.00041434,29386.0,29385.0,0.00036574]
[1609552182158,5.00041434,29386.0,29380.0,0.00036574]
[1609552182359,0.18043158,29381.0,29377.0,0.18043158]
[1609552182961,0.35010158,29381.0,29378.0,0.00036574]
[1609552183360,4.4616,29379.0,29378.0,0.00036574]
[1609552183759,5.4616,29379.0,29369.0,0.00036574]
[1609552183960,5.4616,29379.0,29378.0,0.00036574]
[1609552184363,5.4616,29379.0,29373.0,0.18043158]
[1609552184561,5.4616,29379.0,29378.0,0.00036574]
[1609552184761,1.0,29379.0,29374.0,0.00036574]
[1609552184961,1.0,29379.0,29378.0,0.00036574]
[1609552185362,1.0,29379.0,29374.0,0.00036574]
[1609552185564,1.0,29379.0,29378.0,0.00036574]
[1609552185762,1.0,29379.0,29375.0,0.00036576]
[1609552185962,0.1017,29378.0,29375.0,0.00036576]
[1609552186162,0.1017,29378.0,29374.0,0.00036576]
[1609552186363,0.18043158,29375.0,29373.0,0.18043158]
[1609552186562,0.34747158,29375.0,29373.0,0.18043158]
[1609552186964,0.34747158,29375.0,29374.0,0.00036575]
[1609552187365,0.34747158,29375.0,29373.0,0.18043158]
[1609552187565,0.34747158,29375.0,29374.0,0.00036575]
[1609552187765,1.34747158,29375.0,29374.0,0.0007315]
[1609552189669,1.34747158,29375.0,29368.0,1.72824731]
[1609552190067,0.687,29374.0,29369.0,0.0003657]
[1609552190267,0.18043158,29370.0,29369.0,0.0003657]
[1609552190470,4.84233158,29370.0,29368.0,1.66161047]
[1609552190668,4.84233158,29370.0,29368.0,1.59461047]
[1609552190867,4.84233158,29370.0,29368.0,1.45961047]
[1609552191069,4.84233158,29370.0,29368.0,1.30881047]
[1609552191268,0.18043158,29370.0,29368.0,1.30881047]
[1609552191670,0.18043158,29370.0,29369.0,0.00036574]
[1609552192471,0.18043158,29374.0,29369.0,0.18079732]
[1609552193073,0.18043158,29374.0,29370.0,0.0003657]
[1609552194376,0.1783624,29374.0,29373.0,0.18043158]
[1609552194774,0.1783624,29374.0,29373.0,0.18079725]
[1609552196980,0.1783624,29374.0,29373.0,0.00036567]
[1609552197576,0.1783624,29374.0,29362.0,0.00036569]
[1609552197777,0.1783624,29374.0,29373.0,0.00036569]
[1609552197976,0.1783624,29374.0,29363.0,0.00036569]
[1609552198176,0.1783624,29374.0,29373.0,0.00036569]
[1609552198578,0.1783624,29374.0,29367.0,0.18043158]
[1609552198779,0.1783624,29374.0,29373.0,0.00036569]
[1609552198979,0.1783624,29374.0,29368.0,0.00036569]
[1609552200382,0.18043158,29369.0,29368.0,0.00036569]
[1609552200582,0.30285158,29369.0,29368.0,0.00036569]
[1609552201182,5.44265158,29369.0,29368.0,0.00036569]
[1609552201683,6.44265158,29369.0,29368.0,0.00036569]
[1609552204588,6.44058214,29369.0,29368.0,0.00036569]
[1609552205693,5.44058214,29369.0,29368.0,0.00036569]
[1609552207892,6.44058214,29369.0,29358.0,0.03968094]
[1609552208094,6.44058214,29369.0,29368.0,0.00036572]
[1609552208293,6.44058214,29369.0,29359.0,0.00036572]
[1609552208494,6.26222,29369.0,29368.0,0.00036572]
[1609552208794,6.26222,29369.0,29364.0,0.18043158]
[1609552209094,6.26222,29369.0,29368.0,0.00036572]
[1609552209295,6.26222,29369.0,29365.0,0.00036572]
[1609552209496,6.26222,29369.0,29368.0,0.00036572]
[1609552209698,5.26222,29369.0,29368.0,0.00036572]
[1609552209896,5.26222,29369.0,29365.0,0.00036572]
[1609552210096,5.26222,29369.0,29368.0,0.00036572]
[1609552210296,5.26222,29369.0,29366.0,0.00036572]
[1609552210497,0.18043158,29367.0,29366.0,0.00036572]
[1609552210697,0.18043158,29367.0,29364.0,0.18043158]
[1609552210896,0.18043158,29367.0,29366.0,0.00036572]
[1609552211098,0.18043158,29367.0,29365.0,0.00036572]
[1609552211397,0.18043158,29367.0,29366.0,0.00036572]
[1609552211897,0.18043158,29367.0,29365.0,0.00036572]
[1609552212300,0.18043158,29367.0,29366.0,0.00036572]
[1609552212699,0.18043158,29367.0,29365.0,0.00036574]
[1609552212900,0.18043158,29367.0,29366.0,0.00036574]
[1609552213299,0.18043158,29367.0,29365.0,0.00036574]
[1609552213499,0.18043158,29367.0,29366.0,0.00036574]
[1609552214103,0.18043158,29367.0,29365.0,0.00036574]
[1609552214303,0.18043158,29367.0,29366.0,0.00036576]
[1609552214907,0.18043158,29367.0,29365.0,0.00036576]
[1609552215104,0.18043158,29367.0,29366.0,0.00036576]
[1609552215708,0.18043158,29367.0,29358.0,0.03931816]
[1609552215910,4.916,29359.0,29355.0,0.03931776]
[1609552216116,1.18043158,29367.0,29359.0,0.00036576]
[1609552216312,4.7282,29356.0,29353.0,1.73377736]
[1609552216507,4.7282,29356.0,29353.0,1.62617736]
[1609552216705,0.18043158,29354.0,29353.0,1.61717736]
[1609552216908,0.18043158,29354.0,29352.0,0.18043158]
[1609552217106,0.18043158,29354.0,29353.0,0.00036581]
[1609552218711,0.13766,29357.0,29353.0,0.00036581]
[1609552219108,0.13559006,29357.0,29353.0,0.00036581]
[1609552220609,0.13559006,29357.0,29352.0,1.18043158]
[1609552220809,0.13559006,29357.0,29356.0,1.18043158]
[1609552221309,0.13559006,29357.0,29356.0,1.18079735]
[1609552221610,0.13559006,29357.0,29356.0,1.18043158]
[1609552221810,0.18043158,29358.0,29356.0,1.18043158]
[1609552222009,0.18043158,29358.0,29356.0,1.18079734]
[1609552222210,0.18043158,29358.0,29357.0,0.00036576]
[1609552227113,0.18043158,29358.0,29357.0,0.03968522]
[1609552227914,0.18043158,29358.0,29357.0,0.00036576]
[1609552229316,0.18043158,29358.0,29357.0,0.03968455]
[1609552230718,0.18043158,29358.0,29357.0,0.00036576]
[1609552231120,0.18043158,29358.0,29357.0,0.03968455]
[1609552231618,0.18043158,29358.0,29357.0,0.00036576]
[1609552232120,0.32275158,29358.0,29357.0,0.00036576]
[1609552232921,0.3206816,29358.0,29357.0,0.00036576]
[1609552233321,0.3206816,29358.0,29357.0,0.03968571]
[1609552237329,0.3206816,29358.0,29357.0,1.03968571]
[1609552242237,0.3206816,29358.0,29357.0,0.03968571]
[1609552251349,5.0415816,29358.0,29357.0,0.03968571]
[1609552251548,5.03951152,29358.0,29357.0,0.03968571]
[1609552252649,5.03951152,29358.0,29357.0,0.00036576]
[1609552259759,6.03951152,29358.0,29357.0,0.00036576]
[1609552260859,6.03951152,29358.0,29350.0,0.03917246]
[1609552261058,6.03951152,29358.0,29357.0,0.00036468]
[1609552261459,6.03951152,29358.0,29351.0,0.18043158]
[1609552261661,6.03951152,29358.0,29357.0,0.00036468]
[1609552261859,6.03951152,29358.0,29352.0,0.0391727]
[1609552262159,1.31861152,29358.0,29357.0,0.00036468]
[1609552262360,1.31861152,29358.0,29353.0,0.00036468]
[1609552262662,1.31861152,29358.0,29352.0,0.0391727]
[1609552262961,5.89811152,29358.0,29354.0,0.00036468]
[1609552263163,5.89811152,29358.0,29352.0,0.03880802]
[1609552263164,0.18043158,29355.0,29353.0,0.00036468]
[1609552263463,0.18043158,29355.0,29352.0,0.0391727]
[1609552263764,0.18043158,29355.0,29354.0,0.00036468]
[1609552263964,0.18043158,29355.0,29353.0,0.00036468]
[1609552264266,0.18043158,29355.0,29354.0,0.00036468]
[1609552264766,0.18043158,29355.0,29352.0,0.03917272]
[1609552265065,0.18043158,29355.0,29354.0,0.0003647]
[1609552265267,0.18043158,29355.0,29353.0,0.0003647]
[1609552265667,0.18043158,29355.0,29352.0,0.03917272]
[1609552265867,0.18043158,29355.0,29354.0,0.0003647]
[1609552266067,0.18043158,29355.0,29353.0,0.0003647]
[1609552266269,5.1108,29354.0,29353.0,0.0003647]
[1609552266469,5.1108,29354.0,29352.0,0.03880956]
[1609552266668,0.18043158,29355.0,29353.0,0.0003647]
[1609552267070,0.18043158,29355.0,29351.0,0.09843158]
[1609552267269,0.29426158,29352.0,29351.0,0.09173158]
[1609552267469,0.29426158,29352.0,29351.0,0.01343158]
[1609552267669,0.29426158,29352.0,29351.0,0.01379628]
[1609552267869,1.29426158,29352.0,29351.0,0.01379628]
[1609552268469,1.29426158,29352.0,29349.0,1.74243453]
[1609552268969,1.29426158,29352.0,29350.0,0.03917362]
[1609552269572,0.1033,29351.0,29350.0,0.03917362]
[1609552270573,0.1033,29351.0,29349.0,1.68773453]
[1609552270772,0.1033,29351.0,29349.0,1.60273453]
[1609552271175,0.1033,29351.0,29349.0,1.50223453]
[1609552271374,0.1033,29351.0,29349.0,1.40393453]
[1609552271575,0.1033,29351.0,29350.0,0.00036474]
[1609552271775,1.0,29350.0,29349.0,1.38663453]
[1609552272179,1.0,29350.0,29349.0,0.00036475]
[1609552272376,1.0,29350.0,29344.0,1.98554087]
[1609552272576,1.0,29350.0,29339.0,2.16966802]
[1609552272776,1.0,29350.0,29345.0,0.00036474]
[1609552272977,1.0,29350.0,29340.0,0.03917672]
[1609552273177,1.0,29350.0,29340.0,0.03881198]
[1609552273178,5.3865,29343.0,29340.0,0.03881198]
[1609552273378,0.18043158,29341.0,29340.0,0.03881198]
[1609552273579,0.32691158,29341.0,29340.0,0.03881198]
[1609552273780,0.32484086,29341.0,29340.0,0.03917674]
[1609552274783,0.32484086,29341.0,29340.0,0.00036476]
[1609552278185,0.32484086,29341.0,29340.0,0.00036478]
[1609552278585,0.32484086,29341.0,29340.0,3.94926478]
[1609552280789,0.32484086,29341.0,29340.0,0.00036478]
[1609552283097,0.32484086,29341.0,29340.0,0.54616478]
[1609552283294,0.32484086,29341.0,29340.0,1.54616478]
[1609552284094,0.32484086,29341.0,29340.0,1.58498146]
[1609552284596,0.32484086,29341.0,29340.0,1.03918146]
[1609552285599,0.32277029,29341.0,29340.0,1.03918146]
[1609552286999,0.32277029,29341.0,29340.0,6.98001305]
[1609552287000,0.11571628,29341.0,29340.0,6.98001305]
[1609552287397,0.18043158,29345.0,29340.0,6.98001305]
[1609552288001,0.18043158,29345.0,29341.0,0.03917803]
[1609552289403,0.18043158,29345.0,29344.0,0.18043158]
[1609552289604,0.18043158,29345.0,29344.0,1.18043158]
[1609552289804,0.18043158,29345.0,29344.0,1.21960934]
[1609552290509,0.18043158,29345.0,29344.0,0.21960934]
[1609552291809,0.18043158,29345.0,29344.0,1.21960934]
[1609552294816,0.35400158,29345.0,29344.0,1.21960934]
[1609552295615,0.35400158,29345.0,29344.0,0.21960934]
[1609552296417,0.45650158,29345.0,29344.0,0.21960934]
[1609552296715,0.35400158,29345.0,29344.0,0.21960934]
[1609552299121,0.35400158,29345.0,29344.0,1.21960934]
[1609552302526,0.35193097,29345.0,29344.0,1.21960934]
[1609552303626,0.35193097,29345.0,29344.0,0.21960934]
[1609552305730,0.35193097,29345.0,29344.0,1.21960934]
[1609552310937,0.17357,29345.0,29344.0,1.80380934]
[1609552311137,0.1014,29350.0,29344.0,1.80380934]
[1609552311338,0.11383,29352.0,29344.0,1.80380934]
[1609552311539,0.2964,29355.0,29345.0,0.0387456]
[1609552311938,0.2964,29355.0,29354.0,1.0]
[1609552312338,0.2964,29355.0,29354.0,1.00036379]
[1609552313941,0.47683158,29355.0,29354.0,0.00036379]
[1609552320552,0.47683158,29355.0,29354.0,1.00036379]
[1609552321153,0.47683158,29355.0,29354.0,0.00036379]
[1609552322654,0.47683158,29355.0,29350.0,0.03874308]
[1609552322854,0.47683158,29355.0,29354.0,0.00036379]
[1609552323052,0.47683158,29355.0,29351.0,0.00036379]
[1609552323354,0.47683158,29355.0,29350.0,0.03874308]
[1609552323755,0.2964,29355.0,29352.0,0.00036379]
[1609552323954,0.2964,29355.0,29351.0,0.00036379]
[1609552324154,0.2964,29355.0,29353.0,0.00036379]
[1609552324359,0.18043158,29354.0,29353.0,0.00036379]
[1609552324556,0.18043158,29354.0,29352.0,0.00036379]
[1609552324754,0.18043158,29354.0,29353.0,0.00036379]
[1609552324955,0.18043158,29354.0,29352.0,0.03874273]
[1609552325154,0.18043158,29354.0,29353.0,0.00036379]
[1609552325455,0.18043158,29354.0,29352.0,0.03874273]
[1609552325855,0.18043158,29354.0,29353.0,0.00036379]
[1609552326155,0.2964,29355.0,29353.0,0.00036379]
[1609552326356,0.2964,29355.0,29352.0,0.03874273]
[1609552326556,0.2964,29355.0,29354.0,0.00036379]
[1609552326757,0.47683158,29355.0,29353.0,0.03874314]
[1609552327059,0.47683158,29355.0,29352.0,0.03874314]
[1609552327257,0.47683158,29355.0,29354.0,0.00036379]
[1609552327556,0.47683158,29355.0,29352.0,0.03874358]
[1609552327956,0.47683158,29355.0,29354.0,0.00036379]
[1609552328156,0.47683158,29355.0,29353.0,0.00036379]
[1609552328356,0.47683158,29355.0,29354.0,0.00036379]
[1609552328758,0.47683158,29355.0,29354.0,0.60996379]
[1609552328959,0.47683158,29355.0,29354.0,0.6096]
[1609552329158,0.47683158,29355.0,29354.0,0.60996379]
[1609552330662,0.47683158,29355.0,29354.0,0.79039537]
[1609552335670,0.47683158,29355.0,29354.0,0.82877478]
[1609552336170,0.57763158,29355.0,29354.0,0.82877478]
[1609552339775,1.57763158,29355.0,29354.0,0.82877478]
[1609552341777,0.57763158,29355.0,29354.0,0.82877478]
[1609552344483,0.57763158,29355.0,29354.0,0.21917478]
[1609552347083,0.47683158,29355.0,29354.0,0.21917478]
[1609552358801,0.47683158,29355.0,29354.0,1.21917478]
[1609552359001,0.2968146,29355.0,29354.0,1.18079537]
[1609552359200,0.2968146,29355.0,29354.0,5.06019537]
[1609552359903,0.2964,29355.0,29354.0,5.09822059]
[1609552360702,0.2964,29355.0,29354.0,5.06019537]
[1609552360906,0.2964,29355.0,29354.0,5.09821976]
[1609552361804,0.2964,29355.0,29354.0,5.06019537]
[1609552362003,0.2964,29355.0,29354.0,1.18079537]
[1609552362704,0.2964,29355.0,29354.0,0.18079537]
[1609552363304,0.2964,29355.0,29354.0,1.18079537]
[1609552365306,0.2964,29355.0,29354.0,0.18079537]
[1609552366308,0.2964,29355.0,29354.0,1.18079537]
[1609552366906,0.2964,29355.0,29354.0,0.18079537]
[1609552367306,0.29432979,29355.0,29354.0,0.18079537]
[1609552369009,0.29432979,29355.0,29354.0,0.2188195]
[1609552369308,0.29432979,29355.0,29354.0,1.2188195]
[1609552370512,0.29432979,29355.0,29354.0,0.2188195]
[1609552370711,0.29432979,29355.0,29354.0,1.2188195]
[1609552373415,0.29432979,29355.0,29354.0,0.2188195]
[1609552375920,1.29432979,29355.0,29354.0,0.18079537]
[1609552377822,0.29432979,29355.0,29354.0,0.18079537]
[1609552383829,1.29432979,29355.0,29354.0,0.18079537]
[1609552384431,1.29432979,29355.0,29354.0,0.00036379]
[1609552384831,1.29432979,29355.0,29349.0,0.03838722]
[1609552385033,1.29432979,29355.0,29354.0,0.00036299]
[1609552385233,1.47476137,29355.0,29354.0,0.00036299]
[1609552385431,1.47476137,29355.0,29351.0,0.18043158]
[1609552385631,1.47476137,29355.0,29354.0,0.00036299]
[1609552385833,0.47476137,29355.0,29352.0,0.00036299]
[1609552388234,0.47476137,29355.0,29352.0,0.03838872]
[1609552388434,0.47476137,29355.0,29352.0,0.00036299]
[1609552389135,0.47476137,29355.0,29352.0,0.03838841]
[1609552389334,0.47476137,29355.0,29354.0,0.18043158]
[1609552389736,0.47476137,29355.0,29354.0,0.18079459]
[1609552390637,0.29432979,29355.0,29354.0,0.00036301]
[1609552391136,0.29432979,29355.0,29347.0,0.03839024]
[1609552391336,0.47476137,29355.0,29354.0,0.18079459]
[1609552391937,1.47476137,29355.0,29354.0,0.18079459]
[1609552392537,1.47476137,29355.0,29344.0,1.77021059]
[1609552392737,6.18157601,29355.0,29344.0,1.77021059]
[1609552392939,0.00041466,29354.0,29345.0,0.00036304]
[1609552393338,0.00041466,29354.0,29346.0,0.18043158]
[1609552393537,0.00041466,29354.0,29346.0,0.11153158]
[1609552393739,0.00041466,29354.0,29347.0,0.00036307]
[1609552393943,5.00041466,29354.0,29347.0,0.00036307]
[1609552394142,5.00041466,29354.0,29346.0,0.02613158]
[1609552394345,0.0004147,29353.0,29346.0,0.02613158]
[1609552394743,0.0004147,29353.0,29346.0,3.158e-05]
[1609552394944,0.00433735,29349.0,29341.0,5.6775]
[1609552395146,0.1008,29348.0,29344.0,0.00036306]
[1609552395344,0.18043158,29345.0,29343.0,0.18043158]
[1609552395546,0.35439158,29345.0,29343.0,0.18043158]
[1609552395845,0.35439158,29345.0,29344.0,0.00036307]
[1609552400650,0.35439158,29345.0,29343.0,0.18043158]
[1609552400849,0.35439158,29345.0,29344.0,0.00036308]
[1609552401952,1.35439158,29345.0,29344.0,0.00036308]
[1609552403655,1.35439158,29345.0,29344.0,0.03036308]
[1609552405958,0.35439158,29345.0,29344.0,0.03036308]
[1609552407862,1.35439158,29345.0,29344.0,0.03036308]
[1609552409868,0.35439158,29345.0,29344.0,0.03036308]
[1609552413974,1.35439158,29345.0,29344.0,0.03036308]
[1609552416577,1.33439158,29345.0,29344.0,0.03036308]
[1609552419680,1.31739158,29345.0,29344.0,0.03036308]
[1609552421787,1.3178063,29345.0,29344.0,0.03036308]
[1609552423290,5.6006063,29345.0,29344.0,0.03036308]
[1609552424192,5.6006063,29345.0,29334.0,0.18043158]
[1609552424392,5.6006063,29345.0,29330.0,0.07273025]
[1609552424795,0.00041475,29344.0,29330.0,0.03839657]
[1609552424993,0.00041475,29344.0,29331.0,0.03839657]
[1609552425595,0.18043158,29332.0,29330.0,0.03839808]
[1609552425794,5.3411,29331.0,29328.0,1.76810109]
[1609552426395,5.3411,29331.0,29329.0,0.03841913]
[1609552427297,5.3411,29331.0,29326.0,0.03842047]
[1609552427497,0.18043158,29327.0,29326.0,0.03842047]
[1609552428698,0.18043158,29327.0,29326.0,4.22822047]
[1609552429399,0.18043158,29327.0,29326.0,5.22822047]
[1609552429798,0.17038,29332.0,29326.0,5.22822047]
[1609552430200,0.17038,29332.0,29327.0,0.03841774]
[1609552430404,0.16830837,29332.0,29327.0,0.03841774]
[1609552430802,0.29982046,29344.0,29326.0,5.1898]
[1609552431003,0.29982046,29344.0,29328.0,0.03841266]
[1609552431402,0.2955,29344.0,29328.0,0.03841266]
[1609552431602,0.2955,29344.0,29341.0,0.8037]
[1609552432201,0.2955,29344.0,29342.0,0.00036319]
[1609552432401,0.00041482,29343.0,29342.0,0.00036319]
[1609552433505,0.1808464,29343.0,29342.0,0.00036319]
[1609552433705,0.1708464,29343.0,29342.0,0.00036319]
[1609552433903,1.1708464,29343.0,29342.0,0.00036319]
[1609552435805,0.1708464,29343.0,29342.0,0.00036319]
[1609552436007,1.1708464,29343.0,29342.0,0.00036319]
[1609552437607,1.1708464,29343.0,29341.0,0.76376319]
[1609552438108,0.00041483,29342.0,29341.0,0.75786319]
[1609552438611,0.00041483,29342.0,29341.0,0.7582264]
[1609552439812,1.00041483,29342.0,29341.0,0.7582264]
[1609552440510,1.00041483,29342.0,29341.0,0.6818264]
[1609552441312,1.0,29342.0,29341.0,0.6818264]
[1609552441513,1.00041483,29342.0,29341.0,0.86225798]
[1609552441913,0.00041483,29342.0,29341.0,0.86225798]
[1609552442313,0.00041483,29342.0,29341.0,0.90030965]
[1609552442513,0.1708464,29343.0,29341.0,0.90030965]
[1609552442813,0.1708464,29343.0,29342.0,0.03841435]
[1609552444215,0.1718889,29345.0,29342.0,0.03841435]
[1609552444615,0.01483746,29354.0,29342.0,0.03841435]
[1609552444814,0.01483746,29354.0,29352.0,5.2851]
[1609552445014,0.01483746,29354.0,29342.0,0.03841435]
[1609552445215,0.00432767,29355.0,29353.0,0.00036309]
[1609552445615,0.18043158,29354.0,29352.0,0.18043158]
[1609552446017,0.18043158,29354.0,29353.0,5.64166307]
[1609552446821,0.18043158,29354.0,29353.0,5.63862315]
[1609552447420,0.18043158,29354.0,29353.0,6.63862315]
[1609552448725,0.18043158,29354.0,29353.0,6.62862315]
[1609552449925,0.18043158,29354.0,29353.0,1.0]
[1609552450628,0.18043158,29354.0,29353.0,0.99]
[1609552453227,0.18043158,29354.0,29353.0,0.98]
[1609552454934,0.18043158,29354.0,29352.0,0.18043158]
[1609552455133,0.18043158,29354.0,29353.0,1.0]
[1609552458636,0.18043158,29354.0,29353.0,1.00036303]
[1609552459737,0.18043158,29354.0,29353.0,5.84616303]
[1609552461838,0.18043158,29354.0,29353.0,5.84306303]
[1609552472349,0.18043158,29354.0,29353.0,5.88109309]
[1609552474154,0.17836105,29354.0,29353.0,5.88109309]
[1609552476454,0.17836105,29354.0,29353.0,4.88419309]
[1609552476656,0.17836105,29354.0,29353.0,5.88109309]
[1609552477557,0.17836105,29354.0,29353.0,4.88419309]
[1609552478259,0.17836105,29354.0,29353.0,5.88109309]
[1609552484167,0.17836105,29354.0,29353.0,4.88419309]
[1609552489073,0.17629058,29354.0,29353.0,4.88419309]
[1609552490074,0.18043158,29357.0,29353.0,4.88419309]
[1609552490373,0.18043158,29357.0,29354.0,0.03863589]
[1609552492076,0.18043158,29357.0,29356.0,0.18043158]
[1609552492479,0.18043158,29357.0,29356.0,0.21906587]
[1609552496580,0.18043158,29357.0,29356.0,0.03863429]
[1609552496780,0.18043158,29357.0,29356.0,0.00036354]
[1609552497180,0.18084622,29357.0,29350.0,0.03863455]
[1609552497480,0.18084622,29357.0,29356.0,0.00036356]
[1609552497681,0.18043158,29357.0,29351.0,0.00036356]
[1609552497881,1.18043158,29357.0,29351.0,0.00036356]
[1609552498081,0.18043158,29352.0,29350.0,0.03863455]
[1609552498283,0.18043158,29352.0,29350.0,0.03827099]
[1609552498481,0.29505158,29352.0,29351.0,0.00036356]
[1609552498881,0.29505158,29352.0,29351.0,5.5148]
[1609552499083,0.29505158,29352.0,29351.0,5.51516356]
[1609552499281,0.29505158,29352.0,29351.0,5.55343593]
[1609552500984,0.11462,29352.0,29351.0,6.55343593]
[1609552503389,0.14232,29358.0,29351.0,6.55343593]
[1609552503587,0.46783158,29360.0,29351.0,6.55379948]
[1609552503788,0.46783158,29360.0,29352.0,0.03863641]
[1609552503988,0.00041462,29359.0,29352.0,0.03863641]
[1609552504188,0.00041462,29359.0,29358.0,0.18043158]
[1609552504387,0.15406462,29359.0,29358.0,0.18043158]
[1609552504587,0.15406462,29359.0,29358.0,0.18079513]
[1609552504788,0.15406462,29359.0,29358.0,4.87319513]
[1609552507394,0.15365,29359.0,29358.0,4.87319513]
[1609552507794,0.1540646,29359.0,29358.0,4.87319513]
[1609552507996,0.15365,29359.0,29358.0,4.87319513]
[1609552508497,0.15365,29359.0,29358.0,0.18079513]
[1609552509596,0.01488514,29362.0,29358.0,0.18079513]
[1609552510096,0.0004146,29361.0,29359.0,0.00036353]
[1609552510596,0.1407346,29361.0,29359.0,0.00036353]
[1609552511198,0.0004146,29360.0,29359.0,0.00036353]
[1609552511397,0.14032,29361.0,29359.0,0.00036353]
[1609552512900,0.14032,29361.0,29360.0,5.1618]
[1609552513099,0.14032,29361.0,29360.0,6.1618]
[1609552513299,0.14073459,29361.0,29360.0,6.16216353]
[1609552514903,0.14032,29361.0,29360.0,6.16216353]
[1609552515203,0.14032,29361.0,29360.0,1.00036353]
[1609552515902,0.0043415,29362.0,29360.0,1.00036353]
[1609552516203,0.0043415,29362.0,29361.0,0.18043158]
[1609552516406,0.00433965,29363.0,29361.0,1.83419509]
[1609552516602,0.00433965,29363.0,29361.0,1.18079509]
[1609552516803,0.00433965,29363.0,29362.0,5.1112]
[1609552517002,0.00433965,29363.0,29362.0,6.11156351]
[1609552517203,0.00475422,29363.0,29362.0,6.11156351]
[1609552517904,0.00041457,29363.0,29362.0,6.11156351]
[1609552518102,0.00041457,29363.0,29362.0,5.11156351]
[1609552519306,0.00475416,29363.0,29362.0,5.11156351]
[1609552522109,0.15767416,29363.0,29362.0,5.11156351]
[1609552528114,0.15767416,29363.0,29362.0,0.00036351]
[1609552529414,0.77343315,29363.0,29362.0,0.00036351]
[1609552534623,0.77343315,29363.0,29362.0,5.32456351]
[1609552536226,0.17420443,29363.0,29362.0,5.32456351]
[1609552537627,0.15333457,29363.0,29362.0,5.32456351]
[1609552542735,0.15333457,29363.0,29362.0,0.00036351]
[1609552544435,0.1576737,29363.0,29362.0,0.00036351]
[1609552545938,1.1576737,29363.0,29362.0,0.00036351]
[1609552546640,1.33810528,29363.0,29362.0,0.00036351]
[1609552551943,0.33810528,29363.0,29362.0,0.00036351]
[1609552557351,0.34864545,29363.0,29362.0,0.00036351]
[1609552560761,0.33810528,29363.0,29362.0,0.00036351]
[1609552562061,0.1576737,29363.0,29362.0,5.26606351]
[1609552562261,0.15725913,29363.0,29362.0,6.26606351]
[1609552562464,0.15725913,29363.0,29362.0,6.30441415]
[1609552563063,0.15725913,29363.0,29362.0,6.26606351]
[1609552563666,0.16346841,29363.0,29362.0,6.26606351]
[1609552564167,0.15292,29363.0,29362.0,6.26606351]
[1609552564366,0.15292,29363.0,29362.0,6.30440944]
[1609552564568,0.00434333,29365.0,29362.0,6.30440944]
[1609552564766,0.00434333,29365.0,29364.0,0.18043158]
[1609552565168,0.00434333,29365.0,29364.0,0.18079523]
[1609552565369,0.01489166,29366.0,29364.0,1.18079523]
[1609552565869,0.01489166,29366.0,29365.0,0.00036365]
[1609552566370,0.00434356,29366.0,29365.0,0.00036365]
[1609552567170,0.01488805,29367.0,29365.0,0.00036365]
[1609552568272,0.00434124,29367.0,29365.0,0.00036365]
[1609552569674,0.01488352,29367.0,29365.0,0.00036365]
[1609552570777,0.00434124,29367.0,29365.0,0.00036365]
[1609552571476,0.00434124,29367.0,29365.0,1.00036365]
[1609552571775,0.00434124,29367.0,29366.0,0.00036365]
[1609552573177,0.0148813,29368.0,29366.0,0.00036365]
[1609552574478,0.0148813,29368.0,29365.0,0.00036365]
[1609552574680,0.0148813,29368.0,29367.0,0.00036365]
[1609552574879,0.0148813,29368.0,29367.0,0.18043158]
[1609552575079,0.0148813,29368.0,29367.0,1.18043158]
[1609552575279,0.0148813,29368.0,29367.0,1.18079523]
[1609552575481,0.00433985,29368.0,29367.0,1.18079523]
[1609552576281,0.00433985,29368.0,29367.0,0.18079523]
[1609552580689,0.00433985,29368.0,29367.0,1.18079523]
[1609552581793,0.00433985,29368.0,29367.0,0.18079523]
[1609552582392,0.12242,29369.0,29367.0,0.18079523]
[1609552582792,0.12242,29369.0,29368.0,0.0003636]
[1609552583192,0.18043158,29370.0,29368.0,0.0003636]
[1609552586298,0.01486345,29372.0,29368.0,1.0003636]
[1609552586700,0.01486345,29372.0,29369.0,0.00036352]
[1609552586902,0.01485752,29373.0,29369.0,0.00036352]
[1609552587301,0.01485752,29373.0,29372.0,0.18043158]
[1609552587501,0.01485752,29373.0,29372.0,1.18043158]
[1609552587801,0.01485752,29373.0,29372.0,1.18079506]
[1609552588609,0.1135691,29375.0,29373.0,4.1501]
[1609552588803,0.1135691,29375.0,29374.0,1.0]
[1609552589017,0.0687691,29375.0,29374.0,1.0]
[1609552589209,0.0643691,29375.0,29374.0,1.03868391]
[1609552589607,0.74253322,29382.0,29374.0,1.03868391]
[1609552589808,0.74253322,29382.0,29374.0,5.60468391]
[1609552590006,0.74253322,29382.0,29375.0,1.00036341]
[1609552590408,0.74253322,29382.0,29376.0,0.00036339]
[1609552590907,0.74253322,29382.0,29381.0,4.9065]
[1609552591110,0.18043158,29392.0,29381.0,4.9065]
[1609552591307,0.18043158,29392.0,29391.0,0.18043158]
[1609552592307,0.18043158,29392.0,29391.0,4.54983158]
[1609552596412,0.18043158,29392.0,29391.0,0.18043158]
[1609552597613,0.30714158,29392.0,29391.0,0.18043158]
[1609552598014,0.30714158,29392.0,29391.0,5.36633158]
[1609552603923,1.30714158,29392.0,29391.0,5.36633158]
[1609552612433,1.30714158,29392.0,29391.0,0.18043158]
[1609552612833,1.96614158,29392.0,29381.0,4.8411]
[1609552613334,1.78571,29392.0,29383.0,0.18043158]
[1609552614037,0.78571,29392.0,29381.0,4.8411]
[1609552614436,0.0004143,29391.0,29381.0,4.8411]
[1609552615335,0.18043158,29382.0,29381.0,4.8411]
[1609552615535,0.34917158,29382.0,29381.0,4.8411]
[1609552615735,0.34958592,29382.0,29381.0,4.8411]
[1609552615936,1.34958592,29382.0,29381.0,4.8411]
[1609552616436,1.16915434,29382.0,29381.0,4.8411]
[1609552617438,1.16915434,29382.0,29381.0,4.84146383]
[1609552619844,1.16874,29382.0,29381.0,4.84146383]
[1609552620042,0.16874,29382.0,29381.0,4.84146383]
[1609552620641,0.18043158,29383.0,29381.0,4.84146383]
[1609552620841,0.13665,29382.0,29381.0,4.84146383]
[1609552621142,0.13665,29382.0,29381.0,4.8411]
[1609552621444,0.13665,29382.0,29381.0,4.8414638]
[1609552625952,0.13865,29382.0,29381.0,4.8414638]
[1609552626153,0.13865,29382.0,29381.0,4.8411]
[1609552626552,0.13865,29382.0,29381.0,4.84146378]
[1609552628255,0.13658137,29382.0,29381.0,4.84146378]
[1609552631058,1.18043158,29387.0,29381.0,4.84146378]
[1609552631458,1.0,29387.0,29386.0,0.18043158]
[1609552632059,1.0,29387.0,29386.0,0.18079536]
[1609552633462,1.18043158,29387.0,29386.0,0.18079536]